{"text_format":"1","workbook":"xlsx","n_sheets":6,"sheets":["Dashboard","Ayuda y Version","pBlock","pAccel0","pAccel1","empresa_ccaa"],"not_rendered":{"charts":12,"images":7,"macros":1,"external_links":0,"defined_names":6,"comments":0,"pivot_tables":0},"unopened":[],"bounds":{"document_bytes":16777216,"sheet_cells":100000,"rows_first":2000,"rows_last":500,"rows_between":2000,"halvings":0,"cell_chars":16384,"cell_head_chars":4096},"cells_cut":0,"cells_raw":0,"read":"whole","date_system":"1900"}

{"sheet":"Dashboard","index":0,"n_rows":49,"n_cols":171,"rows_kept":49,"cut":false,"hidden":false,"merged":[]}
[]
[]
[null,null,null,null,null,null,null,null,null,null,null,null,2018]
[null,null,null,null,null,null,null,null,null,null,null,null,"SEPTIEMBRE",null,null,null,null,null,null,null,null,null,null,null,null,null,null,null,null,null,null,null,null,null,null,null,null,null,null,null,null,null,null,null,null,null,null,null,null,null,null,null,null,null,null,null,null,null,null,null,null,null,null,null,null,null,null,null,null,null,null,null,null,null,null,null,null,null,null,null,null,null,null,null,null,null,null,null,null,null,null,null,null,null,null,null,null,null,null,null,null,null,null,null,null,null,null,null,null,null,null,null,null,null,null,null,null,null,null,null,null,null,null,null,null,null,null,null,null,null,null,null,null,null,null,null,null,null,null,null,null,null,null,null,null,null,null,null,null,null,null,null,null,null,null,null,null,null,null,null,null,null,null,"Empresa - Sector","Empresa - Sector"]
["Acumulado a:",{"$f":"M4","v":"SEPTIEMBRE"},null,null,"Datos acumulados",null,"Cuota Negocio / Total ASEMPLEO",null,null,{"$f":"empresa_ccaa!L5","v":"iEMPRESA"},null,"¿▲\"sin\" mi Empresa?",null,null,null,null,null,null,null,null,null,null,null,null,null,null,null,null,null,null,null,null,null,null,null,null,null,null,null,null,null,null,null,null,null,null,null,null,null,null,null,null,null,null,null,null,null,null,null,null,null,null,null,null,null,null,null,null,null,null,null,null,null,null,null,null,null,null,null,null,null,null,null,null,null,null,null,null,null,null,null,null,null,null,null,null,null,null,null,null,null,null,null,null,null,null,null,null,null,null,null,null,null,null,null,null,null,null,null,null,null,null,null,null,null,null,null,null,null,null,null,null,null,null,null,null,null,null,null,null,null,null,null,null,null,null,null,null,null,null,null,null,null,null,null,null,null,null,null,null,null,null,null,null,"p.p."]
["Total","Facturación, €",null,"(a)",{"$f":"J5","v":"iEMPRESA"},null,null,null,"Cuota de Facturación","∆",null,"(b)","∆ (a-b)",null,null,null,null,null,null,null,null,null,null,null,null,null,null,null,null,null,null,null,null,null,null,null,null,null,null,null,null,null,null,null,null,null,null,null,null,null,null,null,null,null,null,null,null,null,null,null,null,null,null,null,null,null,null,null,null,null,null,null,null,null,null,null,null,null,null,null,null,null,null,null,null,null,null,null,null,null,null,null,null,null,null,null,null,null,null,null,null,null,null,null,null,null,null,null,null,null,null,null,null,null,null,null,null,null,null,null,null,null,null,null,null,null,null,null,null,null,null,null,null,null,null,null,null,null,null,null,null,null,null,null,null,null,null,null,null,null,null,null,null,null,null,null,null,null,null,null,null,null,null,null,"Puntos porcentuales"]
[null,2017,2018,"% i.a.",{"$f":"B7","v":2017},{"$f":"C7","v":2018},"% i.a.",{"$f":"E7","v":2017},{"$f":"F7","v":2018},"Dif.P.P.",null,"% i.a.","Dif.P.P.",null,null,null,null,null,null,null,null,null,null,null,null,null,null,null,null,null,null,null,null,null,null,null,null,null,null,null,null,null,null,null,null,null,null,null,null,null,null,null,null,null,null,null,null,null,null,null,null,null,null,null,null,null,null,null,null,null,null,null,null,null,null,null,null,null,null,null,null,null,null,null,null,null,null,null,null,null,null,null,null,null,null,null,null,null,null,null,null,null,null,null,null,null,null,null,null,null,null,null,null,null,null,null,null,null,null,null,null,null,null,null,null,null,null,null,null,null,null,null,null,null,null,null,null,null,null,null,null,null,null,null,null,null,null,null,null,null,null,null,null,null,null,null,null,null,null,null,null,null,null,"Dif. Ritmo","Importancia Relativa",null,null,"Empresa"]
["Nacional",{"$f":"empresa_ccaa!F12","v":2746997022.4227619},{"$f":"empresa_ccaa!G12","v":2960188822.4756932},{"$f":"((C8/B8)-1)","v":7.7609039366523636E-2},{"$f":"empresa_ccaa!K12","v":0},{"$f":"empresa_ccaa!L12","v":0},{"$f":"IF(E8>0,((F8/E8)-1),\"n.a.\")","v":"n.a."},{"$f":"E8/B8","v":0},{"$f":"F8/C8","v":0},{"$f":"(I8-H8)*100","v":0},null,{"$f":"((C8-F8)/(B8-E8))-1","v":7.7609039366523636E-2},{"$f":"(D8-L8)*100","v":0},null,null,null,null,null,null,null,null,null,null,null,null,null,null,null,null,null,null,null,null,null,null,null,null,null,null,null,null,null,null,null,null,null,null,null,null,null,null,null,null,null,null,null,null,null,null,null,null,null,null,null,null,null,null,null,null,null,null,null,null,null,null,null,null,null,null,null,null,null,null,null,null,null,null,null,null,null,null,null,null,null,null,null,null,null,null,null,null,null,null,null,null,null,null,null,null,null,null,null,null,null,null,null,null,null,null,null,null,null,null,null,null,null,null,null,null,null,null,null,null,null,null,null,null,null,null,null,null,null,null,null,null,null,null,null,null,null,null,null,null,null,null,null,null,null,null,null,null,null,null,{"$f":"IF(G8=\"n.a.\",\"n.a.\",(G8-D8)*100)","v":"n.a."},{"$f":"empresa_ccaa!M12-empresa_ccaa!H12","v":{"$error":"#DIV/0!"}},null,"criterio_rank","peso","Comunidad","% i.a.","Total_Regional"]
["ANDALUCIA",{"$f":"empresa_ccaa!F13","v":253832610.76672041},{"$f":"empresa_ccaa!G13","v":260264628.77969244},{"$f":"((C9/B9)-1)","v":2.5339604684928574E-2},{"$f":"empresa_ccaa!K13","v":0},{"$f":"empresa_ccaa!L13","v":0},"n.a.",0,0,{"$f":"(I9-H9)*100","v":0},null,{"$f":"((C9-F9)/(B9-E9))-1","v":2.5339604684928574E-2},0,null,null,null,null,null,null,null,null,null,null,null,null,null,null,null,null,null,null,null,null,null,null,null,null,null,null,null,null,null,null,null,null,null,null,null,null,null,null,null,null,null,null,null,null,null,null,null,null,null,null,null,null,null,null,null,null,null,null,null,null,null,null,null,null,null,null,null,null,null,null,null,null,null,null,null,null,null,null,null,null,null,null,null,null,null,null,null,null,null,null,null,null,null,null,null,null,null,null,null,null,null,null,null,null,null,null,null,null,null,null,null,null,null,null,null,null,null,null,null,null,null,null,null,null,null,null,null,null,null,null,null,null,null,null,null,null,null,null,null,null,null,null,null,null,null,null,null,null,null,null,"n.a.",{"$f":"empresa_ccaa!M13-empresa_ccaa!H13","v":{"$error":"#DIV/0!"}},null,{"$f":"IF(FL9=$FL$27,1,0)","v":1},{"$f":"I9","v":0},{"$f":"A9","v":"ANDALUCIA"},{"$f":"G9","v":"n.a."},{"$f":"D9","v":2.5339604684928574E-2}]
["ARAGON",{"$f":"empresa_ccaa!F14","v":148880741.44063216},{"$f":"empresa_ccaa!G14","v":147266520.59433261},{"$f":"((C10/B10)-1)","v":-1.0842375116349445E-2},{"$f":"empresa_ccaa!K14","v":0},{"$f":"empresa_ccaa!L14","v":0},"n.a.",0,0,0,null,-1.0842375116349445E-2,0,null,null,null,null,null,null,null,null,null,null,null,null,null,null,null,null,null,null,null,null,null,null,null,null,null,null,null,null,null,null,null,null,null,null,null,null,null,null,null,null,null,null,null,null,null,null,null,null,null,null,null,null,null,null,null,null,null,null,null,null,null,null,null,null,null,null,null,null,null,null,null,null,null,null,null,null,null,null,null,null,null,null,null,null,null,null,null,null,null,null,null,null,null,null,null,null,null,null,null,null,null,null,null,null,null,null,null,null,null,null,null,null,null,null,null,null,null,null,null,null,null,null,null,null,null,null,null,null,null,null,null,null,null,null,null,null,null,null,null,null,null,null,null,null,null,null,null,null,null,null,"n.a.",{"$f":"empresa_ccaa!M14-empresa_ccaa!H14","v":{"$error":"#DIV/0!"}},null,1,0,"ARAGON","n.a.",-1.0842375116349445E-2]
["ASTURIAS",{"$f":"empresa_ccaa!F15","v":52991519.94372879},{"$f":"empresa_ccaa!G15","v":55956335.037083738},5.594885929868143E-2,{"$f":"empresa_ccaa!K15","v":0},{"$f":"empresa_ccaa!L15","v":0},"n.a.",0,0,0,null,5.594885929868143E-2,0,null,null,null,null,null,null,null,null,null,null,null,null,null,null,null,null,null,null,null,null,null,null,null,null,null,null,null,null,null,null,null,null,null,null,null,null,null,null,null,null,null,null,null,null,null,null,null,null,null,null,null,null,null,null,null,null,null,null,null,null,null,null,null,null,null,null,null,null,null,null,null,null,null,null,null,null,null,null,null,null,null,null,null,null,null,null,null,null,null,null,null,null,null,null,null,null,null,null,null,null,null,null,null,null,null,null,null,null,null,null,null,null,null,null,null,null,null,null,null,null,null,null,null,null,null,null,null,null,null,null,null,null,null,null,null,null,null,null,null,null,null,null,null,null,null,null,null,null,null,null,"n.a.",{"$f":"empresa_ccaa!M15-empresa_ccaa!H15","v":{"$error":"#DIV/0!"}},null,1,0,"ASTURIAS","n.a.",5.594885929868143E-2]
["BALEARES",{"$f":"empresa_ccaa!F16","v":14037475.399287075},{"$f":"empresa_ccaa!G16","v":12807616.996410834},-8.7612506372670262E-2,{"$f":"empresa_ccaa!K16","v":0},{"$f":"empresa_ccaa!L16","v":0},"n.a.",0,0,0,null,-8.7612506372670262E-2,0,null,null,null,null,null,null,null,null,null,null,null,null,null,null,null,null,null,null,null,null,null,null,null,null,null,null,null,null,null,null,null,null,null,null,null,null,null,null,null,null,null,null,null,null,null,null,null,null,null,null,null,null,null,null,null,null,null,null,null,null,null,null,null,null,null,null,null,null,null,null,null,null,null,null,null,null,null,null,null,null,null,null,null,null,null,null,null,null,null,null,null,null,null,null,null,null,null,null,null,null,null,null,null,null,null,null,null,null,null,null,null,null,null,null,null,null,null,null,null,null,null,null,null,null,null,null,null,null,null,null,null,null,null,null,null,null,null,null,null,null,null,null,null,null,null,null,null,null,null,null,"n.a.",{"$f":"empresa_ccaa!M16-empresa_ccaa!H16","v":{"$error":"#DIV/0!"}},null,1,0,"BALEARES","n.a.",-8.7612506372670262E-2]
["CANARIAS",{"$f":"empresa_ccaa!F17","v":69119081.404458404},{"$f":"empresa_ccaa!G17","v":70309350.013505042},1.722055017024382E-2,{"$f":"empresa_ccaa!K17","v":0},{"$f":"empresa_ccaa!L17","v":0},"n.a.",0,0,0,null,1.722055017024382E-2,0,null,null,null,null,null,null,null,null,null,null,null,null,null,null,null,null,null,null,null,null,null,null,null,null,null,null,null,null,null,null,null,null,null,null,null,null,null,null,null,null,null,null,null,null,null,null,null,null,null,null,null,null,null,null,null,null,null,null,null,null,null,null,null,null,null,null,null,null,null,null,null,null,null,null,null,null,null,null,null,null,null,null,null,null,null,null,null,null,null,null,null,null,null,null,null,null,null,null,null,null,null,null,null,null,null,null,null,null,null,null,null,null,null,null,null,null,null,null,null,null,null,null,null,null,null,null,null,null,null,null,null,null,null,null,null,null,null,null,null,null,null,null,null,null,null,null,null,null,null,null,"n.a.",{"$f":"empresa_ccaa!M17-empresa_ccaa!H17","v":{"$error":"#DIV/0!"}},null,1,0,"CANARIAS","n.a.",1.722055017024382E-2]
["CANTABRIA",{"$f":"empresa_ccaa!F18","v":61696756.185588203},{"$f":"empresa_ccaa!G18","v":73834952.411142915},0.19673961770440829,{"$f":"empresa_ccaa!K18","v":0},{"$f":"empresa_ccaa!L18","v":0},"n.a.",0,0,0,null,0.19673961770440829,0,null,null,null,null,null,null,null,null,null,null,null,null,null,null,null,null,null,null,null,null,null,null,null,null,null,null,null,null,null,null,null,null,null,null,null,null,null,null,null,null,null,null,null,null,null,null,null,null,null,null,null,null,null,null,null,null,null,null,null,null,null,null,null,null,null,null,null,null,null,null,null,null,null,null,null,null,null,null,null,null,null,null,null,null,null,null,null,null,null,null,null,null,null,null,null,null,null,null,null,null,null,null,null,null,null,null,null,null,null,null,null,null,null,null,null,null,null,null,null,null,null,null,null,null,null,null,null,null,null,null,null,null,null,null,null,null,null,null,null,null,null,null,null,null,null,null,null,null,null,null,"n.a.",{"$f":"empresa_ccaa!M18-empresa_ccaa!H18","v":{"$error":"#DIV/0!"}},null,1,0,"CANTABRIA","n.a.",0.19673961770440829]
["CASTILLA-LA MANCHA",{"$f":"empresa_ccaa!F19","v":113990955.96034849},{"$f":"empresa_ccaa!G19","v":129750736.0922637},0.13825465361828537,{"$f":"empresa_ccaa!K19","v":0},{"$f":"empresa_ccaa!L19","v":0},"n.a.",0,0,0,null,0.13825465361828537,0,null,null,null,null,null,null,null,null,null,null,null,null,null,null,null,null,null,null,null,null,null,null,null,null,null,null,null,null,null,null,null,null,null,null,null,null,null,null,null,null,null,null,null,null,null,null,null,null,null,null,null,null,null,null,null,null,null,null,null,null,null,null,null,null,null,null,null,null,null,null,null,null,null,null,null,null,null,null,null,null,null,null,null,null,null,null,null,null,null,null,null,null,null,null,null,null,null,null,null,null,null,null,null,null,null,null,null,null,null,null,null,null,null,null,null,null,null,null,null,null,null,null,null,null,null,null,null,null,null,null,null,null,null,null,null,null,null,null,null,null,null,null,null,null,null,null,null,null,null,null,"n.a.",{"$f":"empresa_ccaa!M19-empresa_ccaa!H19","v":{"$error":"#DIV/0!"}},null,1,0,"CASTILLA-LA MANCHA","n.a.",0.13825465361828537]
["CASTILLA Y LEÓN",{"$f":"empresa_ccaa!F20","v":179158001.71198267},{"$f":"empresa_ccaa!G20","v":193038814.28875095},7.7478049789164949E-2,{"$f":"empresa_ccaa!K20","v":0},{"$f":"empresa_ccaa!L20","v":0},"n.a.",0,0,{"$f":"(I16-H16)*100","v":0},null,7.7478049789164949E-2,0,null,null,null,null,null,null,null,null,null,null,null,null,null,null,null,null,null,null,null,null,null,null,null,null,null,null,null,null,null,null,null,null,null,null,null,null,null,null,null,null,null,null,null,null,null,null,null,null,null,null,null,null,null,null,null,null,null,null,null,null,null,null,null,null,null,null,null,null,null,null,null,null,null,null,null,null,null,null,null,null,null,null,null,null,null,null,null,null,null,null,null,null,null,null,null,null,null,null,null,null,null,null,null,null,null,null,null,null,null,null,null,null,null,null,null,null,null,null,null,null,null,null,null,null,null,null,null,null,null,null,null,null,null,null,null,null,null,null,null,null,null,null,null,null,null,null,null,null,null,null,"n.a.",{"$f":"empresa_ccaa!M20-empresa_ccaa!H20","v":{"$error":"#DIV/0!"}},null,1,0,"CASTILLA Y LEÓN","n.a.",7.7478049789164949E-2]
["CATALUÑA",{"$f":"empresa_ccaa!F21","v":665481876.08646536},{"$f":"empresa_ccaa!G21","v":731096640.36788094},9.8597372278986573E-2,{"$f":"empresa_ccaa!K21","v":0},{"$f":"empresa_ccaa!L21","v":0},{"$f":"IF(E17>0,((F17/E17)-1),\"n.a.\")","v":"n.a."},0,0,{"$f":"(I17-H17)*100","v":0},null,9.8597372278986573E-2,0,null,null,null,null,null,null,null,null,null,null,null,null,null,null,null,null,null,null,null,null,null,null,null,null,null,null,null,null,null,null,null,null,null,null,null,null,null,null,null,null,null,null,null,null,null,null,null,null,null,null,null,null,null,null,null,null,null,null,null,null,null,null,null,null,null,null,null,null,null,null,null,null,null,null,null,null,null,null,null,null,null,null,null,null,null,null,null,null,null,null,null,null,null,null,null,null,null,null,null,null,null,null,null,null,null,null,null,null,null,null,null,null,null,null,null,null,null,null,null,null,null,null,null,null,null,null,null,null,null,null,null,null,null,null,null,null,null,null,null,null,null,null,null,null,null,null,null,null,null,null,"n.a.",{"$f":"empresa_ccaa!M21-empresa_ccaa!H21","v":{"$error":"#DIV/0!"}},null,1,0,"CATALUÑA","n.a.",9.8597372278986573E-2]
["COMUNIDAD VALENCIANA",{"$f":"empresa_ccaa!F22","v":200450913.650177},{"$f":"empresa_ccaa!G22","v":214415548.46660516},6.9666107088935281E-2,{"$f":"empresa_ccaa!K22","v":0},{"$f":"empresa_ccaa!L22","v":0},"n.a.",0,0,{"$f":"(I18-H18)*100","v":0},null,6.9666107088935281E-2,0,null,null,null,null,null,null,null,null,null,null,null,null,null,null,null,null,null,null,null,null,null,null,null,null,null,null,null,null,null,null,null,null,null,null,null,null,null,null,null,null,null,null,null,null,null,null,null,null,null,null,null,null,null,null,null,null,null,null,null,null,null,null,null,null,null,null,null,null,null,null,null,null,null,null,null,null,null,null,null,null,null,null,null,null,null,null,null,null,null,null,null,null,null,null,null,null,null,null,null,null,null,null,null,null,null,null,null,null,null,null,null,null,null,null,null,null,null,null,null,null,null,null,null,null,null,null,null,null,null,null,null,null,null,null,null,null,null,null,null,null,null,null,null,null,null,null,null,null,null,null,"n.a.",{"$f":"empresa_ccaa!M22-empresa_ccaa!H22","v":{"$error":"#DIV/0!"}},null,1,0,"COMUNIDAD VALENCIANA","n.a.",6.9666107088935281E-2]
["EXTREMADURA",{"$f":"empresa_ccaa!F23","v":17203372.29175533},{"$f":"empresa_ccaa!G23","v":20154541.069384575},0.17154594620053554,{"$f":"empresa_ccaa!K23","v":0},{"$f":"empresa_ccaa!L23","v":0},"n.a.",0,0,0,null,0.17154594620053554,0,null,null,null,null,null,null,null,null,null,null,null,null,null,null,null,null,null,null,null,null,null,null,null,null,null,null,null,null,null,null,null,null,null,null,null,null,null,null,null,null,null,null,null,null,null,null,null,null,null,null,null,null,null,null,null,null,null,null,null,null,null,null,null,null,null,null,null,null,null,null,null,null,null,null,null,null,null,null,null,null,null,null,null,null,null,null,null,null,null,null,null,null,null,null,null,null,null,null,null,null,null,null,null,null,null,null,null,null,null,null,null,null,null,null,null,null,null,null,null,null,null,null,null,null,null,null,null,null,null,null,null,null,null,null,null,null,null,null,null,null,null,null,null,null,null,null,null,null,null,null,"n.a.",{"$f":"empresa_ccaa!M23-empresa_ccaa!H23","v":{"$error":"#DIV/0!"}},null,1,0,"EXTREMADURA","n.a.",0.17154594620053554]
["GALICIA",{"$f":"empresa_ccaa!F24","v":136741691.61365014},{"$f":"empresa_ccaa!G24","v":158502946.54698184},0.15914133192688529,{"$f":"empresa_ccaa!K24","v":0},{"$f":"empresa_ccaa!L24","v":0},"n.a.",0,0,0,null,0.15914133192688529,0,null,null,null,null,null,null,null,null,null,null,null,null,null,null,null,null,null,null,null,null,null,null,null,null,null,null,null,null,null,null,null,null,null,null,null,null,null,null,null,null,null,null,null,null,null,null,null,null,null,null,null,null,null,null,null,null,null,null,null,null,null,null,null,null,null,null,null,null,null,null,null,null,null,null,null,null,null,null,null,null,null,null,null,null,null,null,null,null,null,null,null,null,null,null,null,null,null,null,null,null,null,null,null,null,null,null,null,null,null,null,null,null,null,null,null,null,null,null,null,null,null,null,null,null,null,null,null,null,null,null,null,null,null,null,null,null,null,null,null,null,null,null,null,null,null,null,null,null,null,null,"n.a.",{"$f":"empresa_ccaa!M24-empresa_ccaa!H24","v":{"$error":"#DIV/0!"}},null,1,0,"GALICIA","n.a.",0.15914133192688529]
["MADRID",{"$f":"empresa_ccaa!F25","v":428856858.11113},{"$f":"empresa_ccaa!G25","v":448027725.50540799},4.4702252119074748E-2,{"$f":"empresa_ccaa!K25","v":0},{"$f":"empresa_ccaa!L25","v":0},"n.a.",0,0,0,null,4.4702252119074748E-2,0,null,null,null,null,null,null,null,null,null,null,null,null,null,null,null,null,null,null,null,null,null,null,null,null,null,null,null,null,null,null,null,null,null,null,null,null,null,null,null,null,null,null,null,null,null,null,null,null,null,null,null,null,null,null,null,null,null,null,null,null,null,null,null,null,null,null,null,null,null,null,null,null,null,null,null,null,null,null,null,null,null,null,null,null,null,null,null,null,null,null,null,null,null,null,null,null,null,null,null,null,null,null,null,null,null,null,null,null,null,null,null,null,null,null,null,null,null,null,null,null,null,null,null,null,null,null,null,null,null,null,null,null,null,null,null,null,null,null,null,null,null,null,null,null,null,null,null,null,null,null,"n.a.",{"$f":"empresa_ccaa!M25-empresa_ccaa!H25","v":{"$error":"#DIV/0!"}},null,1,0,"MADRID","n.a.",4.4702252119074748E-2]
["MURCIA",{"$f":"empresa_ccaa!F26","v":154697456.42473739},{"$f":"empresa_ccaa!G26","v":171540609.92766553},0.10887802483761311,{"$f":"empresa_ccaa!K26","v":0},{"$f":"empresa_ccaa!L26","v":0},"n.a.",0,0,0,null,0.10887802483761311,0,null,null,null,null,null,null,null,null,null,null,null,null,null,null,null,null,null,null,null,null,null,null,null,null,null,null,null,null,null,null,null,null,null,null,null,null,null,null,null,null,null,null,null,null,null,null,null,null,null,null,null,null,null,null,null,null,null,null,null,null,null,null,null,null,null,null,null,null,null,null,null,null,null,null,null,null,null,null,null,null,null,null,null,null,null,null,null,null,null,null,null,null,null,null,null,null,null,null,null,null,null,null,null,null,null,null,null,null,null,null,null,null,null,null,null,null,null,null,null,null,null,null,null,null,null,null,null,null,null,null,null,null,null,null,null,null,null,null,null,null,null,null,null,null,null,null,null,null,null,null,"n.a.",{"$f":"empresa_ccaa!M26-empresa_ccaa!H26","v":{"$error":"#DIV/0!"}},null,1,0,"MURCIA","n.a.",0.10887802483761311]
["NAVARRA",{"$f":"empresa_ccaa!F27","v":85937785.561471581},{"$f":"empresa_ccaa!G27","v":104821233.3911567},0.21973393550125553,{"$f":"empresa_ccaa!K27","v":0},{"$f":"empresa_ccaa!L27","v":0},"n.a.",0,0,0,null,0.21973393550125553,0,null,null,null,null,null,null,null,null,null,null,null,null,null,null,null,null,null,null,null,null,null,null,null,null,null,null,null,null,null,null,null,null,null,null,null,null,null,null,null,null,null,null,null,null,null,null,null,null,null,null,null,null,null,null,null,null,null,null,null,null,null,null,null,null,null,null,null,null,null,null,null,null,null,null,null,null,null,null,null,null,null,null,null,null,null,null,null,null,null,null,null,null,null,null,null,null,null,null,null,null,null,null,null,null,null,null,null,null,null,null,null,null,null,null,null,null,null,null,null,null,null,null,null,null,null,null,null,null,null,null,null,null,null,null,null,null,null,null,null,null,null,null,null,null,null,null,null,null,null,null,"n.a.",{"$f":"empresa_ccaa!M27-empresa_ccaa!H27","v":{"$error":"#DIV/0!"}},null,1,0,"NAVARRA","n.a.",0.21973393550125553]
["PAIS VASCO",{"$f":"empresa_ccaa!F28","v":140175988.9944253},{"$f":"empresa_ccaa!G28","v":144127254.08101293},2.8187888060805966E-2,{"$f":"empresa_ccaa!K28","v":0},{"$f":"empresa_ccaa!L28","v":0},"n.a.",0,0,0,null,2.8187888060805966E-2,0,null,null,null,null,null,null,null,null,null,null,null,null,null,null,null,null,null,null,null,null,null,null,null,null,null,null,null,null,null,null,null,null,null,null,null,null,null,null,null,null,null,null,null,null,null,null,null,null,null,null,null,null,null,null,null,null,null,null,null,null,null,null,null,null,null,null,null,null,null,null,null,null,null,null,null,null,null,null,null,null,null,null,null,null,null,null,null,null,null,null,null,null,null,null,null,null,null,null,null,null,null,null,null,null,null,null,null,null,null,null,null,null,null,null,null,null,null,null,null,null,null,null,null,null,null,null,null,null,null,null,null,null,null,null,null,null,null,null,null,null,null,null,null,null,null,null,null,null,null,null,"n.a.",{"$f":"empresa_ccaa!M28-empresa_ccaa!H28","v":{"$error":"#DIV/0!"}},null,1,0,"PAIS VASCO","n.a.",2.8187888060805966E-2]
["RIOJA (LA)",{"$f":"empresa_ccaa!F29","v":23743936.876203604},{"$f":"empresa_ccaa!G29","v":24273368.906415235},2.2297567289367048E-2,{"$f":"empresa_ccaa!K29","v":0},{"$f":"empresa_ccaa!L29","v":0},"n.a.",0,0,0,null,2.2297567289367048E-2,0,null,null,null,null,null,null,null,null,null,null,null,null,null,null,null,null,null,null,null,null,null,null,null,null,null,null,null,null,null,null,null,null,null,null,null,null,null,null,null,null,null,null,null,null,null,null,null,null,null,null,null,null,null,null,null,null,null,null,null,null,null,null,null,null,null,null,null,null,null,null,null,null,null,null,null,null,null,null,null,null,null,null,null,null,null,null,null,null,null,null,null,null,null,null,null,null,null,null,null,null,null,null,null,null,null,null,null,null,null,null,null,null,null,null,null,null,null,null,null,null,null,null,null,null,null,null,null,null,null,null,null,null,null,null,null,null,null,null,null,null,null,null,null,null,null,null,null,null,null,null,"n.a.",{"$f":"empresa_ccaa!M29-empresa_ccaa!H29","v":{"$error":"#DIV/0!"}},null,1,0,"RIOJA (LA)","n.a.",2.2297567289367048E-2]
[null,null,null,null,null,null,null,null,null,null,null,null,null,null,null,null,null,null,null,null,null,null,null,null,null,null,null,null,null,null,null,null,null,null,null,null,null,null,null,null,null,null,null,null,null,null,null,null,null,null,null,null,null,null,null,null,null,null,null,null,null,null,null,null,null,null,null,null,null,null,null,null,null,null,null,null,null,null,null,null,null,null,null,null,null,null,null,null,null,null,null,null,null,null,null,null,null,null,null,null,null,null,null,null,null,null,null,null,null,null,null,null,null,null,null,null,null,null,null,null,null,null,null,null,null,null,null,null,null,null,null,null,null,null,null,null,null,null,null,null,null,null,null,null,null,null,null,null,null,null,null,null,null,null,null,null,null,null,null,null,null,null,null,null,null,null,"codifico=1","máximo"]
[null,null,null,null,null,null,null,null,null,null,null,null,null,null,null,null,null,null,null,null,null,null,null,null,null,null,null,null,null,null,null,null,null,null,null,null,null,null,null,null,null,null,null,null,null,null,null,null,null,null,null,null,null,null,null,null,null,null,null,null,null,null,null,null,null,null,null,null,null,null,null,null,null,null,null,null,null,null,null,null,null,null,null,null,null,null,null,null,null,null,null,null,null,null,null,null,null,null,null,null,null,null,null,null,null,null,null,null,null,null,null,null,null,null,null,null,null,null,null,null,null,null,null,null,null,null,null,null,null,null,null,null,null,null,null,null,null,null,null,null,null,null,null,null,null,null,null,null,null,null,null,null,null,null,null,null,null,null,null,null,null,null,null,null,null,null,{"$f":"DMAX(FK8:FM25,FL8,FK8:FK25)*1","v":0},{"$f":"MAX(FL9:FL25)","v":0}]
[null,null,null,null,null,null,null,null,null,{"$f":"I6","v":"Cuota de Facturación"},null,null,null,null,null,null,null,null,null,null,null,null,null,null,null,null,null,null,null,null,null,null,null,null,null,null,null,null,null,null,null,null,null,null,null,null,null,null,null,null,null,null,null,null,null,null,null,null,null,null,null,null,null,null,null,null,null,null,null,null,null,null,null,null,null,null,null,null,null,null,null,null,null,null,null,null,null,null,null,null,null,null,null,null,null,null,null,null,null,null,null,null,null,null,null,null,null,null,null,null,null,null,null,null,null,null,null,null,null,null,null,null,null,null,null,null,null,null,null,null,null,null,null,null,null,null,null,null,null,null,null,null,null,null,null,null,null,null,null,null,null,null,null,null,null,null,null,null,null,null,null,null,null,null,null,"geo data",{"$f":"VLOOKUP(1,FK8:FO25,3,0)","v":"ANDALUCIA"}]
[null,null,null,null,null,null,null,null,null,null,null,null,{"$f":"I7","v":2018},null,null,null,null,null,null,null,null,null,null,null,null,null,null,null,null,null,null,null,null,null,null,null,null,null,null,null,null,null,null,null,null,null,null,null,null,null,null,null,null,null,null,null,null,null,null,null,null,null,null,null,null,null,null,null,null,null,null,null,null,null,null,null,null,null,null,null,null,null,null,null,null,null,null,null,null,null,null,null,null,null,null,null,null,null,null,null,null,null,null,null,null,null,null,null,null,null,null,null,null,null,null,null,null,null,null,null,null,null,null,null,null,null,null,null,null,null,null,null,null,null,null,null,null,null,null,null,null,null,null,null,null,null,null,null,null,null,null,null,null,null,null,null,null,null,null,null,null,null,null,null,null,null,"el dato a buscar debe estar en la primera columna. "]
[null,"% i.a.",null,null,null,"% i.a.",null,null,null,null,null,null,null,null,null,null,null,null,null,null,null,null,null,null,null,null,null,null,null,null,null,null,null,null,null,null,null,null,null,null,null,null,null,null,null,null,null,null,null,null,null,null,null,null,null,null,null,null,null,null,null,null,null,null,null,null,null,null,null,null,null,null,null,null,null,null,null,null,null,null,null,null,null,null,null,null,null,null,null,null,null,null,null,null,null,null,null,null,null,null,null,null,null,null,null,null,null,null,null,null,null,null,null,null,null,null,null,null,null,null,null,null,null,null,null,null,null,null,null,null,null,null,null,null,null,null,null,null,null,null,null,null,null,null,null,null,null,null,null,null,null,null,null,null,null,null,null,null,null,null,null,null,null,null,null,null,{"$f":"VLOOKUP(1,FK8:FO25,4,0)*1","v":{"$error":"#VALUE!"}}]
[null,{"$f":"C7","v":2018},null,null,null,{"$f":"B31","v":2018},null,null,null,null,null,null,null,null,null,null,null,null,null,null,null,null,null,null,null,null,null,null,null,null,null,null,null,null,null,null,null,null,null,null,null,null,null,null,null,null,null,null,null,null,null,null,null,null,null,null,null,null,null,null,null,null,null,null,null,null,null,null,null,null,null,null,null,null,null,null,null,null,null,null,null,null,null,null,null,null,null,null,null,null,null,null,null,null,null,null,null,null,null,null,null,null,null,null,null,null,null,null,null,null,null,null,null,null,null,null,null,null,null,null,null,null,null,null,null,null,null,null,null,null,null,null,null,null,null,null,null,null,null,null,null,null,null,null,null,null,null,null,null,null,null,null,null,null,null,null,null,null,null,null,null,null,null,null,null,null,{"$f":"VLOOKUP(1,FK8:FO25,5,0)*1","v":2.5339604684928574E-2}]
[null,"Total",null,null,null,"Empresa",null,null,null,{"$f":"J5","v":"iEMPRESA"}]
[null,null,null,null,null,null,null,null,null,null,null,null,"Ámbito"]
["Ámbito",{"$f":"F34","v":"Nacional"},null,null,null,{"$f":"J34","v":"Nacional"},null,null,null,"Nacional",null,null,"Nacional"]
[]
[]
[]
[null,null,null,null,null,null,null,null,null,{"$f":"FK28","v":"ANDALUCIA"},null,null,"CCAA"]
[null,null,null,null,null,null,null,null,null,null,null,null,"Líder para la"]
[null,"% i.a.",null,null,null,"% i.a.",null,null,null,null,null,null,"Empresa"]
[null,{"$f":"B31","v":2018},null,null,null,{"$f":"B41","v":2018}]
[null,"Total",null,null,null,"Empresa",null,null,null,{"$f":"J32","v":"iEMPRESA"}]
[]
["Ámbito",{"$f":"F44","v":"ANDALUCIA"},null,null,null,{"$f":"J44","v":"ANDALUCIA"},null,null,null,{"$f":"J38","v":"ANDALUCIA"}]
[]
[]
[]
["Fuente: Cifras consolidadas del sector. Valores absolutos 2015-2018 y cifras de evolución de 2016 a la fecha. ASEMPLEO ©."]
["Nota de Confidencialidad: Este informe comparativo contiene datos redondeados que son ficticeos y serán reemplazados por los que la Empresa introduzca en \"empresa_ccaa\"."]

{"sheet":"Ayuda y Version","index":1,"n_rows":2,"n_cols":8,"rows_kept":2,"cut":false,"hidden":true,"merged":[]}
[]
[null,null,null,null,null,null,"Versión de plantilla:",2.5]

{"sheet":"pBlock","index":2,"n_rows":5,"n_cols":3,"rows_kept":5,"cut":false,"hidden":true,"merged":[]}
[]
[]
[]
[null,"Block Test"]
[null,"Info1","Info2"]

{"sheet":"pAccel0","index":3,"n_rows":30,"n_cols":42,"rows_kept":30,"cut":false,"hidden":true,"merged":[]}
["Gauge Configuration",null,null,null,null,null,null,null,null,null,null,null,null,null,"Gauge Configuration",null,null,null,null,null,null,null,null,null,null,"Gauge Configuration",null,null,null,null,null,null,null,null,null,null,"Gauge Configuration"]
[null,null,null,null,null,"Decal",null,null,null,null,null,null,null,null,null,null,null,null,null,"Decal",null,null,null,null,null,null,null,null,null,null,"Decal",null,null,null,null,null,null,null,null,null,null,"Decal"]
["Title:",{"$f":"Dashboard!#REF!","v":{"$error":"#REF!"}},null,null,null,0,null,null,null,null,null,null,null,null,"Title:",{"$f":"pAccel0!B3","v":{"$error":"#REF!"}},null,null,null,0,null,null,null,null,null,"Title:","Empresa",null,null,null,0,null,null,null,null,null,"Title:","CCAA",null,null,null,0]
["Real Value:",{"$f":"Dashboard!#REF!","v":{"$error":"#REF!"}},null,null,null,null,null,null,null,null,null,null,null,null,"Real Value:",{"$f":"Dashboard!I8","v":0},null,null,null,null,null,null,null,null,null,"Real Value:",{"$f":"Dashboard!I8","v":0},null,null,null,null,null,null,null,null,null,"Real Value:",{"$f":"Dashboard!FK27","v":0}]
[]
["Color bands",null,null,null,null,null,null,null,null,null,null,null,null,null,"Color bands",null,null,null,null,null,null,null,null,null,null,"Color bands",null,null,null,null,null,null,null,null,null,null,"Color bands"]
["Red:",2,null,null,null,null,null,null,null,null,null,null,null,null,"Red:",2,null,null,null,null,null,null,null,null,null,"Red:",2,null,null,null,null,null,null,null,null,null,"Red:",2]
["Yellow:",15,null,null,null,null,null,null,null,null,null,null,null,null,"Yellow:",15,null,null,null,null,null,null,null,null,null,"Yellow:",15,null,null,null,null,null,null,null,null,null,"Yellow:",15]
["Green:",23,null,null,null,null,null,null,null,null,null,null,null,null,"Green:",23,null,null,null,null,null,null,null,null,null,"Green:",23,null,null,null,null,null,null,null,null,null,"Green:",23]
[]
["Advanced Parameters",null,null,null,null,null,null,null,null,null,null,null,null,null,"Advanced Parameters",null,null,null,null,null,null,null,null,null,null,"Advanced Parameters",null,null,null,null,null,null,null,null,null,null,"Advanced Parameters"]
[null,"Value to 100%",{"$f":"IF(ISERROR((B4-F3/100)*B27),0,(B4-F3/100)*B27)","v":0},null,null,null,null,null,null,null,null,null,null,null,null,"Value to 100%",{"$f":"IF(ISERROR((P4-T3/100)*P27),0,(P4-T3/100)*P27)","v":0},null,null,null,null,null,null,null,null,null,"Value to 100%",{"$f":"IF(ISERROR((AA4-AE3/100)*AA27),0,(AA4-AE3/100)*AA27)","v":0},null,null,null,null,null,null,null,null,null,"Value to 100%",{"$f":"IF(ISERROR((AL4-AP3/100)*AL27),0,(AL4-AP3/100)*AL27)","v":0}]
[null,"Relative value",{"$f":"IF(C12>100%,102%,IF(C12<0%,-2%,C12))*1.506-0.253","v":-0.253},null,null,null,null,null,null,null,null,null,null,null,null,"Relative value",{"$f":"IF(Q12>100%,102%,IF(Q12<0%,-2%,Q12))*1.506-0.253","v":-0.253},null,null,null,null,null,null,null,null,null,"Relative value",{"$f":"IF(AB12>100%,102%,IF(AB12<0%,-2%,AB12))*1.506-0.253","v":-0.253},null,null,null,null,null,null,null,null,null,"Relative value",{"$f":"IF(AM12>100%,102%,IF(AM12<0%,-2%,AM12))*1.506-0.253","v":-0.253}]
[]
["Angle",null,{"$f":"C13*PI()","v":-0.79482294135821763},null,null,null,null,null,null,null,null,null,null,null,"Angle",null,{"$f":"Q13*PI()","v":-0.79482294135821763},null,null,null,null,null,null,null,null,"Angle",null,{"$f":"AB13*PI()","v":-0.79482294135821763},null,null,null,null,null,null,null,null,"Angle",null,{"$f":"AM13*PI()","v":-0.79482294135821763}]
["x",0,{"$f":"-COS(C15)","v":-0.70041115078380645},null,null,null,null,null,null,null,null,null,null,null,"x",0,{"$f":"-COS(Q15)","v":-0.70041115078380645},null,null,null,null,null,null,null,null,"x",0,{"$f":"-COS(AB15)","v":-0.70041115078380645},null,null,null,null,null,null,null,null,"x",0,{"$f":"-COS(AM15)","v":-0.70041115078380645}]
["y",0,{"$f":"SIN(C15)","v":-0.7137396022764213},null,null,null,null,null,null,null,null,null,null,null,"y",0,{"$f":"SIN(Q15)","v":-0.7137396022764213},null,null,null,null,null,null,null,null,"y",0,{"$f":"SIN(AB15)","v":-0.7137396022764213},null,null,null,null,null,null,null,null,"y",0,{"$f":"SIN(AM15)","v":-0.7137396022764213}]
[]
[null,null,null,"Value","Label",null,null,null,null,null,null,null,null,null,null,null,null,"Value","Label",null,null,null,null,null,null,null,null,null,"Value","Label",null,null,null,null,null,null,null,null,null,"Value","Label"]
[null,null,70,10,{"$f":"B26+F3","v":4},null,null,null,null,null,null,null,null,null,null,null,70,10,{"$f":"P26+T3","v":4},null,null,null,null,null,null,null,null,70,10,{"$f":"AA26+AE3","v":4},null,null,null,null,null,null,null,null,70,10,{"$f":"AL26+AP3","v":4}]
[null,null,{"$f":"B7*$C$20/$B$25","v":3.5},10,{"$f":"E20+$B$26","v":8},null,null,null,null,null,null,null,null,null,null,null,{"$f":"P7*$C$20/$B$25","v":3.5},10,{"$f":"S20+$B$26","v":8},null,null,null,null,null,null,null,null,{"$f":"AA7*$AB$20/$AA$25","v":3.5},10,{"$f":"AD20+$AA$26","v":8},null,null,null,null,null,null,null,null,{"$f":"AL7*$AM$20/$AL$25","v":3.5},10,{"$f":"AO20+$AL$26","v":8}]
[null,null,{"$f":"B8*$C$20/$B$25","v":26.25},10,12,null,null,null,null,null,null,null,null,null,null,null,{"$f":"P8*$C$20/$B$25","v":26.25},10,12,null,null,null,null,null,null,null,null,{"$f":"AA8*$AB$20/$AA$25","v":26.25},10,12,null,null,null,null,null,null,null,null,{"$f":"AL8*$AM$20/$AL$25","v":26.25},10,{"$f":"AO21+$AL$26","v":12}]
[null,null,{"$f":"B9*$C$20/$B$25","v":40.25},10,16,null,null,null,null,null,null,null,null,null,null,null,{"$f":"P9*$C$20/$B$25","v":40.25},10,16,null,null,null,null,null,null,null,null,{"$f":"AA9*$AB$20/$AA$25","v":40.25},10,16,null,null,null,null,null,null,null,null,40.25,10,16]
["White",null,23,10,20,null,null,null,null,null,null,null,null,null,"White",null,23,10,20,null,null,null,null,null,null,"White",null,23,10,20,null,null,null,null,null,null,"White",null,23,10,20]
["Total",{"$f":"SUM(B7:B24)","v":40},{"$f":"SUM(C21:C24)","v":93},10,24,null,null,null,null,null,null,null,null,null,"Total",{"$f":"SUM(P7:P24)","v":40},{"$f":"SUM(Q21:Q24)","v":93},10,24,null,null,null,null,null,null,"Total",{"$f":"SUM(AA7:AA24)","v":40},{"$f":"SUM(AB21:AB24)","v":93},10,24,null,null,null,null,null,null,"Total",{"$f":"SUM(AL7:AL24)","v":40},{"$f":"SUM(AM21:AM24)","v":93},10,24]
["Increment",{"$f":"B25/10","v":4},null,10,28,null,null,null,null,null,null,null,null,null,"Increment",{"$f":"P25/10","v":4},null,10,28,null,null,null,null,null,null,"Increment",{"$f":"AA25/10","v":4},null,10,28,null,null,null,null,null,null,"Increment",{"$f":"AL25/10","v":4},null,10,28]
["Conversion",{"$f":"100/B25","v":2.5},null,10,32,null,null,null,null,null,null,null,null,null,"Conversion",{"$f":"100/P25","v":2.5},null,10,32,null,null,null,null,null,null,"Conversion",{"$f":"100/AA25","v":2.5},null,10,32,null,null,null,null,null,null,"Conversion",{"$f":"100/AL25","v":2.5},null,10,32]
[null,null,null,10,36,null,null,null,null,null,null,null,null,null,null,null,null,10,36,null,null,null,null,null,null,null,null,null,10,36,null,null,null,null,null,null,null,null,null,10,36]
[null,null,null,10,40,null,null,null,null,null,null,null,null,null,null,null,null,10,40,null,null,null,null,null,null,null,null,null,10,40,null,null,null,null,null,null,null,null,null,10,40]
[null,null,null,33,{"$f":"F3","v":0},null,null,null,null,null,null,null,null,null,null,null,null,33,{"$f":"T3","v":0},null,null,null,null,null,null,null,null,null,33,{"$f":"AE3","v":0},null,null,null,null,null,null,null,null,null,33,{"$f":"AP3","v":0}]

{"sheet":"pAccel1","index":4,"n_rows":35,"n_cols":64,"rows_kept":35,"cut":false,"hidden":true,"merged":[]}
["Gauge Configuration",null,null,null,null,null,null,null,null,null,null,null,null,null,null,null,"Gauge Configuration",null,null,null,null,null,null,"Gauge Configuration",null,null,null,null,null,null,"Gauge Configuration",null,null,null,null,null,null,"Gauge Configuration",null,null,null,null,null,null,"Gauge Configuration",null,null,null,null,null,null,"Gauge Configuration",null,null,null,null,null,null,"Gauge Configuration"]
[null,null,null,null,null,"Decal",null,null,null,null,null,null,null,null,null,null,null,null,null,null,null,"Decal",null,null,null,null,null,null,"Decal",null,null,null,null,null,null,"Decal",null,null,null,null,null,null,"Decal",null,null,null,null,null,null,"Decal",null,null,null,null,null,null,"Decal",null,null,null,null,null,null,"Decal"]
["Title:","CPDs",null,null,null,100,null,null,null,null,null,null,null,null,null,null,"Title:","Facturación",null,null,null,100,null,"Title:","CPDs",null,null,null,100,null,"Title:","Facturación",null,null,null,100,null,"Title:","Facturación",null,null,null,100,null,"Title:","Facturación",null,null,null,100,null,"Title:","Facturación",null,null,null,100,null,"Title:","Facturación",null,null,null,100]
["Real Value:",{"$f":"Dashboard!#REF!","v":{"$error":"#REF!"}},{"$f":"Dashboard!#REF!","v":{"$error":"#REF!"}},null,null,null,null,null,null,null,null,null,null,null,null,null,"Real Value:",{"$f":"Dashboard!#REF!","v":{"$error":"#REF!"}},null,null,null,null,null,"Real Value:",{"$f":"Dashboard!#REF!","v":{"$error":"#REF!"}},null,null,null,null,null,"Real Value:",{"$f":"Dashboard!#REF!","v":{"$error":"#REF!"}},null,null,null,null,null,"Real Value:",{"$f":"Dashboard!D8","v":7.7609039366523636E-2},null,null,null,null,null,"Real Value:",{"$f":"Dashboard!$G$8","v":"n.a."},null,null,null,null,null,"Real Value:",{"$f":"Dashboard!FK31","v":2.5339604684928574E-2},null,null,null,null,null,"Real Value:",{"$f":"Dashboard!FK30","v":{"$error":"#VALUE!"}}]
[]
["Color bands"]
["Red:",-50]
["Yellow:",0]
["Green:",50]
[]
["Advanced Parameters",null,null,null,null,null,null,null,null,null,null,null,null,null,null,null,"Advanced Parameters",null,null,null,null,null,null,"Advanced Parameters",null,null,null,null,null,null,"Advanced Parameters",null,null,null,null,null,null,"Advanced Parameters",null,null,null,null,null,null,"Advanced Parameters",null,null,null,null,null,null,"Advanced Parameters",null,null,null,null,null,null,"Advanced Parameters"]
[null,"Value to 100%",{"$f":"IF(ISERROR((B4-F3/100)*B27),0,(B4-F3/100)*B27)","v":0},null,{"$f":"IF(ISERROR((C4-F3/100)*B27),0,(C4-F3/100)*B27)","v":0},null,null,null,null,null,null,null,null,null,null,null,null,"Value to 100%",{"$f":"IF(ISERROR((R4-V3/100)*R27),0,(R4-V3/100)*R27)","v":0},null,null,null,null,null,"Value to 100%",{"$f":"IF(ISERROR((Y4-AC3/100)*Y27),0,(Y4-AC3/100)*Y27)","v":0},null,null,null,null,null,"Value to 100%",{"$f":"IF(ISERROR((AF4-AJ3/100)*AF27),0,(AF4-AJ3/100)*AF27)","v":0},null,null,null,null,null,"Value to 100%",{"$f":"IF(ISERROR((AM4-AQ3/100)*AM27),0,(AM4-AQ3/100)*AM27)","v":-1.8447819212669527},null,null,null,null,null,"Value to 100%",{"$f":"IF(ISERROR((AT4-AX3/100)*AT27),0,(AT4-AX3/100)*AT27)","v":0},null,null,null,null,null,"Value to 100%",{"$f":"IF(ISERROR((BA4-BE3/100)*BA27),0,(BA4-BE3/100)*BA27)","v":-1.9493207906301429},null,null,null,null,null,"Value to 100%",{"$f":"IF(ISERROR((BH4-BL3/100)*BH27),0,(BH4-BL3/100)*BH27)","v":0}]
[null,"Relative value",{"$f":"IF(B4<-100%,-100%,IF(B4>100%,100%,2*B4/1))","v":{"$error":"#REF!"}},"ojo1, todo en porcentaje, por 2, y con 1 al final en lugar de 100.",{"$f":"IF(C4<-100%,-100%,IF(C4>100%,100%,2*C4/1))","v":{"$error":"#REF!"}},null,null,null,"Todos los negritas tienen dato 50, en lugar de 100 para que la escala recorra menos. ",null,null,null,null,null,null,null,null,"Relative value",{"$f":"IF(R4<-100%,-100%,IF(R4>100%,100%,2*R4/1))","v":{"$error":"#REF!"}},null,null,null,null,null,"Relative value",{"$f":"IF(Y4<-100%,-100%,IF(Y4>100%,100%,2*Y4/1))","v":{"$error":"#REF!"}},null,null,null,null,null,"Relative value",{"$f":"IF(AF4<-100%,-100%,IF(AF4>100%,100%,2*AF4/1))","v":{"$error":"#REF!"}},null,null,null,null,null,"Relative value",{"$f":"IF(AM4<-100%,-100%,IF(AM4>100%,100%,2*AM4/1))","v":0.15521807873304727},null,null,null,null,null,"Relative value",{"$f":"IF(AT4<-100%,-100%,IF(AT4>100%,100%,2*AT4/1))","v":1},null,null,null,null,null,"Relative value",{"$f":"IF(BA4<-100%,-100%,IF(BA4>100%,100%,2*BA4/1))","v":5.0679209369857148E-2},null,null,null,null,null,"Relative value",{"$f":"IF(BH4<-100%,-100%,IF(BH4>100%,100%,2*BH4/1))","v":{"$error":"#VALUE!"}}]
[]
["Angle",null,{"$f":"C13*PI()/2","v":{"$error":"#REF!"}},null,{"$f":"E13*PI()/2","v":{"$error":"#REF!"}},null,null,null,null,null,null,null,null,null,null,null,"Angle",null,{"$f":"S13*PI()/2","v":{"$error":"#REF!"}},null,null,null,null,"Angle",null,{"$f":"Z13*PI()/2","v":{"$error":"#REF!"}},null,null,null,null,"Angle",null,{"$f":"AG13*PI()/2","v":{"$error":"#REF!"}},null,null,null,null,"Angle",null,{"$f":"AN13*PI()/2","v":0.24381598792603171},null,null,null,null,"Angle",null,{"$f":"AU13*PI()/2","v":1.5707963267948966},null,null,null,null,"Angle",null,{"$f":"BB13*PI()/2","v":7.960671592304111E-2},null,null,null,null,"Angle",null,{"$f":"BI13*PI()/2","v":{"$error":"#VALUE!"}}]
["x",0,{"$f":"SIN(C15)","v":{"$error":"#REF!"}},{"$f":"B16","v":0},{"$f":"SIN(E15)","v":{"$error":"#REF!"}},null,null,null,null,null,null,null,null,null,null,null,"x",0,{"$f":"SIN(S15)","v":{"$error":"#REF!"}},null,null,null,null,"x",0,{"$f":"SIN(Z15)","v":{"$error":"#REF!"}},null,null,null,null,"x",0,{"$f":"SIN(AG15)","v":{"$error":"#REF!"}},null,null,null,null,"x",0,{"$f":"SIN(AN15)","v":0.24140750073281},null,null,null,null,"x",0,{"$f":"SIN(AU15)","v":1},null,null,null,null,"x",0,{"$f":"SIN(BB15)","v":7.9522661560007063E-2},null,null,null,null,"x",0,{"$f":"SIN(BI15)","v":{"$error":"#VALUE!"}}]
["y",0,{"$f":"-COS(C15)","v":{"$error":"#REF!"}},{"$f":"B17","v":0},{"$f":"-COS(E15)","v":{"$error":"#REF!"}},null,null,null,null,null,null,null,null,null,null,null,"y",0,{"$f":"-COS(S15)","v":{"$error":"#REF!"}},null,null,null,null,"y",0,{"$f":"-COS(Z15)","v":{"$error":"#REF!"}},null,null,null,null,"y",0,{"$f":"-COS(AG15)","v":{"$error":"#REF!"}},null,null,null,null,"y",0,{"$f":"-COS(AN15)","v":-0.97042383451249714},null,null,null,null,"y",0,{"$f":"-COS(AU15)","v":-6.1257422745431001E-17},null,null,null,null,"y",0,{"$f":"-COS(BB15)","v":-0.99683305838962455},null,null,null,null,"y",0,{"$f":"-COS(BI15)","v":{"$error":"#VALUE!"}}]
[]
[null,null,null,"Value","Label"]
[null,null,50,0,50]
[null,null,{"$f":"E21","v":40},{"$f":"D31/D33","v":5},{"$f":"E20+$B$26","v":40}]
[null,null,{"$f":"E22","v":30},{"$f":"D21","v":5},{"$f":"E21+$B$26","v":30}]
[null,null,20,{"$f":"D22","v":5},20]
["White",null,10,5,10,null,null,null,null,null,null,null,null,null,null,null,"White",null,null,null,null,null,null,"White",null,null,null,null,null,null,"White",null,null,null,null,null,null,"White",null,null,null,null,null,null,"White",null,null,null,null,null,null,"White",null,null,null,null,null,null,"White"]
["Total",50,0,5,0,null,null,null,null,null,null,null,null,null,null,null,"Total",50,null,null,null,null,null,"Total",50,null,null,null,null,null,"Total",50,null,null,null,null,null,"Total",50,null,null,null,null,null,"Total",50,null,null,null,null,null,"Total",50,null,null,null,null,null,"Total",50]
["Increment",-10,-10,5,-10,null,null,null,null,null,null,null,null,null,null,null,"Increment",-10,null,null,null,null,null,"Increment",-10,null,null,null,null,null,"Increment",-10,null,null,null,null,null,"Increment",-10,null,null,null,null,null,"Increment",-10,null,null,null,null,null,"Increment",-10,null,null,null,null,null,"Increment",-10]
["Conversion",{"$f":"100/B25","v":2},-20,5,-20,null,null,null,null,null,null,null,null,null,null,null,"Conversion",{"$f":"100/R25","v":2},null,null,null,null,null,"Conversion",{"$f":"100/Y25","v":2},null,null,null,null,null,"Conversion",{"$f":"100/AF25","v":2},null,null,null,null,null,"Conversion",{"$f":"100/AM25","v":2},null,null,null,null,null,"Conversion",{"$f":"100/AT25","v":2},null,null,null,null,null,"Conversion",{"$f":"100/BA25","v":2},null,null,null,null,null,"Conversion",{"$f":"100/BH25","v":2}]
[null,null,-30,5,-30]
[null,null,-40,5,-40]
[null,null,-50,5,-50]
[null,null,null,50]
[]
[null,null,null,10]
[]
[null,null,null,{"$f":"SUM(D20:D30)","v":50}]

{"sheet":"empresa_ccaa","index":5,"n_rows":315,"n_cols":158,"rows_kept":315,"cut":false,"hidden":false,"merged":[]}
[]
[]
[null,null,null,null,null,null,null,null,null,null,null,null,{"$f":"Dashboard!M3","v":2018}]
[null,null,null,null,null,null,null,null,null,null,null,null,{"$f":"Dashboard!M4","v":"SEPTIEMBRE"}]
[null,null,null,null,null,null,null,null,null,null,"Empresa",{"$f":"L9","v":"iEMPRESA"}]
[]
[]
[]
[null,null,"Facturación, €",null,null,"ASEMPLEO","ASEMPLEO",null,null,null,"Empresa = ","iEMPRESA"]
[null,null,"Dato acumulado a",null,{"$f":"M4","v":"SEPTIEMBRE"},{"$f":"Dashboard!B7","v":2017},{"$f":"Dashboard!C7","v":2018},null,null,"Facturación",{"$f":"F10","v":2017},{"$f":"G10","v":2018}]
[null,null,null,null,null,null,null,"Estructura (%)",null,"Datos acumulados ",null,null,"Estructura (%)",null,null,null,null,null,null,null,null,null,null,null,null,null,null,null,null,null,null,null,null,null,null,null,null,null,null,null,null,null,null,null,null,null,null,null,null,null,null,null,null,null,null,null,null,null,null,null,null,null,null,null,null,null,null,null,null,null,null,null,null,null,null,null,null,null,null,null,null,null,null,null,null,null,null,null,null,null,null,null,null,null,null,null,null,null,null,null,null,null,null,null,null,null,null,null,null,null,null,null,null,null,null,null,null,null,null,null,null,null,null,null,null,null,null,null,null,null,null,null,null,null,null,null,null,null,null,null,null,null,null,null,null,null,null,null,null,null,null,null,null,null,null,null,null,"check"]
[null,null,null,null,null,{"$f":"E297","v":2746997022.4227619},{"$f":"B297","v":2960188822.4756932},{"$f":"G12/G$12","v":1},"TOTAL",null,{"$f":"SUM(K13:K29)","v":0},{"$f":"SUM(L13:L29)","v":0},{"$f":"L12/L$12","v":{"$error":"#DIV/0!"}},null,null,null,null,null,null,null,null,null,null,null,null,null,null,null,null,null,null,null,null,null,null,null,null,null,null,null,null,null,null,null,null,null,null,null,null,null,null,null,null,null,null,null,null,null,null,null,null,null,null,null,null,null,null,null,null,null,null,null,null,null,null,null,null,null,null,null,null,null,null,null,null,null,null,null,null,null,null,null,null,null,null,null,null,null,null,null,null,null,null,null,null,null,null,null,null,null,null,null,null,null,null,null,null,null,null,null,null,null,null,null,null,null,null,null,null,null,null,null,null,null,null,null,null,null,null,null,null,null,null,null,null,null,null,null,null,null,null,null,null,null,null,null,null,{"$f":"L12/K12-1","v":{"$error":"#DIV/0!"}}]
[null,null,null,null,null,253832610.76672041,260264628.77969244,{"$f":"G13/G$12","v":8.7921630810708029E-2},"ANDALUCIA",null,null,null,{"$f":"L13/L$12","v":{"$error":"#DIV/0!"}}]
[null,null,null,null,null,148880741.44063216,147266520.59433261,{"$f":"G14/G$12","v":4.9749029344408266E-2},"ARAGON",null,null,null,{"$f":"L14/L$12","v":{"$error":"#DIV/0!"}}]
[null,null,null,null,null,52991519.94372879,55956335.037083738,1.890296139632262E-2,"ASTURIAS",null,null,null,{"$error":"#DIV/0!"}]
[null,null,null,null,null,14037475.399287075,12807616.996410834,4.3266216327711975E-3,"BALEARES",null,null,null,{"$error":"#DIV/0!"}]
[null,null,null,null,null,69119081.404458404,70309350.013505042,2.3751643638294417E-2,"CANARIAS",null,null,null,{"$error":"#DIV/0!"}]
[null,null,null,null,null,61696756.185588203,73834952.411142915,2.494264955348104E-2,"CANTABRIA",null,null,null,{"$error":"#DIV/0!"}]
[null,null,null,null,null,113990955.96034849,129750736.0922637,4.3831912041255978E-2,"CASTILLA-LA MANCHA",null,null,null,{"$error":"#DIV/0!"}]
[null,null,null,null,null,179158001.71198267,193038814.28875095,6.521165569678318E-2,"CASTILLA Y LEÓN",null,null,null,{"$error":"#DIV/0!"}]
[null,null,null,null,null,665481876.08646536,731096640.36788094,0.24697635327074954,"CATALUÑA",null,null,null,{"$f":"L21/L$12","v":{"$error":"#DIV/0!"}}]
[null,null,null,null,null,200450913.650177,214415548.46660516,7.243306468784079E-2,"COMUNIDAD VALENCIANA",null,null,null,{"$error":"#DIV/0!"}]
[null,null,null,null,null,17203372.29175533,20154541.069384575,6.8085322518476165E-3,"EXTREMADURA",null,null,null,{"$error":"#DIV/0!"}]
[null,null,null,null,null,136741691.61365014,158502946.54698184,5.3544877050924457E-2,"GALICIA",null,null,null,{"$error":"#DIV/0!"}]
[null,null,null,null,null,428856858.11113,448027725.50540799,0.15135106318343206,"MADRID",null,null,null,{"$error":"#DIV/0!"}]
[null,null,null,null,null,154697456.42473739,171540609.92766553,5.7949212099315021E-2,"MURCIA",null,null,null,{"$error":"#DIV/0!"}]
[null,null,null,null,null,85937785.561471581,104821233.3911567,3.5410319975295229E-2,"NAVARRA",null,null,null,{"$error":"#DIV/0!"}]
[null,null,null,null,null,140175988.9944253,144127254.08101293,4.8688533983610907E-2,"PAIS VASCO",null,null,null,{"$error":"#DIV/0!"}]
[null,null,null,null,null,23743936.876203604,24273368.906415235,8.1999393829595979E-3,"RIOJA (LA)",null,null,null,{"$error":"#DIV/0!"}]
[]
["Fuente: Cifras consolidadas del sector. ASEMPLEO ©."]
["Nota de Confidencialidad: Este informe comparativo se genera con los datos propios de la Empresa. "]
[]
[]
[]
[]
[]
[]
[]
[]
[]
[]
[]
[]
[]
[]
[]
[]
[]
[]
[]
[]
[]
[]
[]
[]
[]
[]
[]
[]
[]
[]
[]
[]
[]
[]
[]
[]
[]
[]
[]
[]
[]
[]
[]
[]
[]
[]
[]
[]
[]
[]
[]
[]
[]
[]
[]
[]
[]
[]
[]
[]
[]
[]
[]
[]
[]
[]
[]
[]
[]
[]
[]
[]
[]
[]
[]
[]
[]
[]
[]
[]
[]
[]
[]
[]
[]
[]
[]
[]
[]
[]
[]
[]
[]
[]
[]
[]
[]
[]
[]
[]
[]
[]
[]
[]
[]
[]
[]
[]
[]
[]
[]
[]
[]
[]
[]
[]
[]
[]
[]
[]
[]
[]
[]
[]
[]
[]
[]
[]
[]
[]
[]
[]
[]
[]
[]
[]
[]
[]
[]
[]
[]
[]
[]
[]
[]
[]
[]
[]
[]
[]
[]
[]
[]
[]
[]
[]
[]
[]
[]
[]
[]
[]
[]
[]
[]
[]
[]
[]
[]
[]
[]
[]
[]
[]
[]
[]
[]
[]
[]
[]
[]
[]
[]
[]
[]
[]
[]
[]
[]
[]
[]
[]
[]
[]
[]
[]
[]
[]
[]
[]
[]
[]
[]
[]
[]
[]
[]
[]
[]
[]
[]
[]
[]
[]
[]
[]
[]
[]
[]
[]
[]
[]
[]
[]
[]
[]
[]
[]
[]
[]
[]
[]
[]
[]
[]
[]
[]
[]
[]
[]
[]
[]
[]
[]
[]
[]
[]
[]
[]
[]
[]
[]
[]
[]
[]
[]
[]
[]
[]
["D03: ",null,null,"D03: ",null,null,"D03 : ","Variación Interanual (%)"]
["MES:","ACUMULADO A LA FECHA",null,{"$f":"A293","v":"MES:"},{"$f":"B293","v":"ACUMULADO A LA FECHA"},null,{"$f":"D293","v":"MES:"},"Tasa % i.a."]
[]
[null,"Facturación",null,null,"Facturación",null,null,"Facturación"]
[null,null,null,null,null,null,null,null,"check"]
["TOTAL",2960188822.4756932,null,"TOTAL",2746997022.4227619,null,"TOTAL",7.7609039366523636E-2,{"$f":"B297/E297-1","v":7.7609039366523636E-2}]
["ANDALUCIA",260264628.77969244,null,"ANDALUCIA",253832610.76672041,null,"ANDALUCIA",2.5339604684928574E-2,{"$f":"B298/E298-1","v":2.5339604684928574E-2}]
["ARAGON",147266520.59433261,null,"ARAGON",148880741.44063216,null,"ARAGON",-1.0842375116349445E-2,-1.0842375116349445E-2]
["ASTURIAS",55956335.037083738,null,"ASTURIAS",52991519.94372879,null,"ASTURIAS",5.594885929868143E-2,5.594885929868143E-2]
["BALEARES",12807616.996410834,null,"BALEARES",14037475.399287075,null,"BALEARES",-8.7612506372670262E-2,-8.7612506372670262E-2]
["CANARIAS",70309350.013505042,null,"CANARIAS",69119081.404458404,null,"CANARIAS",1.722055017024382E-2,1.722055017024382E-2]
["CANTABRIA",73834952.411142915,null,"CANTABRIA",61696756.185588203,null,"CANTABRIA",0.19673961770440829,0.19673961770440829]
["CASTILLA-LA MANCHA",129750736.0922637,null,"CASTILLA-LA MANCHA",113990955.96034849,null,"CASTILLA-LA MANCHA",0.13825465361828537,0.13825465361828537]
["CASTILLA Y LEÓN",193038814.28875095,null,"CASTILLA Y LEÓN",179158001.71198267,null,"CASTILLA Y LEÓN",7.7478049789164949E-2,7.7478049789164949E-2]
["CATALUÑA",731096640.36788094,null,"CATALUÑA",665481876.08646536,null,"CATALUÑA",9.8597372278986573E-2,9.8597372278986573E-2]
["COMUNIDAD VALENCIANA",214415548.46660516,null,"COMUNIDAD VALENCIANA",200450913.650177,null,"COMUNIDAD VALENCIANA",6.9666107088935281E-2,6.9666107088935281E-2]
["EXTREMADURA",20154541.069384575,null,"EXTREMADURA",17203372.29175533,null,"EXTREMADURA",0.17154594620053554,0.17154594620053554]
["GALICIA",158502946.54698184,null,"GALICIA",136741691.61365014,null,"GALICIA",0.15914133192688529,0.15914133192688529]
["MADRID",448027725.50540799,null,"MADRID",428856858.11113,null,"MADRID",4.4702252119074748E-2,4.4702252119074748E-2]
["MURCIA",171540609.92766553,null,"MURCIA",154697456.42473739,null,"MURCIA",0.10887802483761311,0.10887802483761311]
["NAVARRA",104821233.3911567,null,"NAVARRA",85937785.561471581,null,"NAVARRA",0.21973393550125553,0.21973393550125553]
["PAIS VASCO",144127254.08101293,null,"PAIS VASCO",140175988.9944253,null,"PAIS VASCO",2.8187888060805966E-2,2.8187888060805966E-2]
["RIOJA (LA)",24273368.906415235,null,"RIOJA (LA)",23743936.876203604,null,"RIOJA (LA)",2.2297567289367048E-2,{"$f":"B314/E314-1","v":2.2297567289367048E-2}]
["Ceuta y Melilla",null,null,"Ceuta y Melilla",null,null,"Ceuta y Melilla"]